bitfinex/quotes_ETHUSD_20251127
["timestamp","ask_amount","ask_price","bid_price","bid_amount"]
[1764248243342,0.002,2997.6,2997.5,5.92955065]
[1764248243641,0.002,2997.6,2997.5,5.25315065]
[1764248243825,0.002,2997.6,2997.5,5.46715065]
[1764248244731,0.002,2997.6,2997.5,5.25315065]
[1764248244927,0.5007,2997.6,2997.5,0.73434312]
[1764248245128,0.5007,2997.6,2997.5,0.214]
[1764248247113,0.5007,2997.6,2997.5,3.55011342]
[1764248247526,0.5007,2997.6,2997.5,0.213]
[1764248248219,0.9701,2997.6,2997.1,0.72559411]
[1764248248431,0.9701,2997.6,2997.2,0.213]
[1764248248639,0.9701,2997.6,2997.3,0.03336336]
[1764248248933,0.9701,2997.6,2997.4,3.33622472]
[1764248249130,0.9701,2997.6,2997.3,3.36966837]
[1764248249332,0.9701,2997.6,2997.4,0.213]
[1764248250039,0.002,2997.6,2997.4,0.24636224]
[1764248250614,1.13109811,2997.4,2995.5,0.001]
[1764248250921,4.02339512,2995.9,2995.5,0.001]
[1764248251110,4.29279512,2995.9,2995.5,0.001]
[1764248251546,0.4694,2995.8,2994.5,0.29679121]
[1764248251746,0.2852,2995.6,2994.5,0.29679121]
[1764248252123,0.4694,2995.5,2994.5,0.29679121]
[1764248252643,0.4694,2995.5,2994.6,0.214]
[1764248253019,3.33845229,2995.4,2994.7,0.214]
[1764248253344,3.33845229,2995.4,2994.7,0.93295374]
[1764248253519,3.80785229,2995.4,2994.7,0.93295374]
[1764248253722,3.80785229,2995.4,2994.7,0.71895374]
[1764248253936,0.4694,2995.3,2994.8,0.214]
[1764248254449,0.4694,2995.3,2993.9,0.003]
[1764248254450,0.4987,2994.9,2993.9,0.003]
[1764248254745,0.0872,2994.8,2993.9,0.003]
[1764248254934,6.67846528,2994.7,2993.9,0.003]
[1764248255134,7.14786528,2994.7,2993.9,0.003]
[1764248255345,0.4694,2994.6,2993.9,0.003]
[1764248255545,0.4694,2994.6,2993.9,0.01974171]
[1764248255746,0.4694,2994.6,2993.9,0.003]
[1764248256046,3.3389187,2995.0,2993.9,0.01974171]
[1764248256246,0.214,2995.2,2993.9,0.48214171]
[1764248256448,0.4694,2995.1,2993.9,0.4654]
[1764248257236,3.33889816,2995.0,2994.0,6.68002672]
[1764248257443,4.54428771,2995.1,2994.0,6.68002672]
[1764248257625,0.4694,2995.0,2994.1,0.3783]
[1764248258165,0.4694,2995.0,2994.2,0.214]
[1764248259166,6.67801928,2994.9,2994.2,0.214]
[1764248259360,4.12727943,2994.9,2994.2,0.214]
[1764248259850,4.12727943,2994.9,2994.2,3.55374222]
[1764248260042,4.12727943,2994.9,2994.2,0.214]
[1764248260244,7.46628907,2994.9,2993.9,0.003]
[1764248260545,7.46628907,2994.9,2994.2,0.214]
[1764248260750,4.12727943,2994.9,2994.2,0.214]
[1764248260953,4.12727943,2994.9,2994.3,0.01673278]
[1764248261240,4.12727943,2994.9,2994.2,0.214]
[1764248261241,3.33878668,2995.1,2994.2,3.55368066]
[1764248261425,0.4671,2994.8,2994.2,3.55368066]
[1764248261625,0.4671,2994.8,2994.1,0.214]
[1764248262431,0.4671,2994.8,2994.2,0.01673557]
[1764248263654,0.4671,2994.8,2994.3,3.33967872]
[1764248263854,3.80623975,2994.8,2994.2,3.35652408]
[1764248264482,10.01741925,2994.8,2993.9,0.003]
[1764248264677,0.4739,2994.0,2993.9,0.003]
[1764248266959,4.28101336,2994.0,2993.9,0.003]
[1764248267134,0.941,2994.0,2993.9,0.003]
[1764248267642,4.28101336,2994.0,2993.9,0.003]
[1764248267848,5.44861408,2994.0,2993.9,0.003]
[1764248268356,5.04311008,2994.0,2993.9,0.003]
[1764248268566,5.44861408,2994.0,2993.9,0.003]
[1764248268757,0.405504,2993.9,2993.5,0.003]
[1764248268957,0.3129,2993.6,2993.5,0.003]
[1764248269140,0.5269,2993.6,2993.5,0.003]
[1764248269477,1.399504,2993.6,2993.5,0.003]
[1764248269769,0.405504,2993.5,2992.9,0.006]
[1764248269969,0.405504,2993.5,2992.1,0.01]
[1764248269970,0.405504,2992.9,2992.1,0.01]
[1764248270131,0.405504,2992.9,2990.4,0.4975]
[1764248270132,1.082704,2992.2,2990.4,0.45257994]
[1764248270472,1.082704,2992.2,2990.0,0.1808]
[1764248270473,0.1061,2991.6,2990.0,0.1808]
[1764248270764,3.97921457,2991.8,2990.0,0.1808]
[1764248270765,0.97329186,2992.1,2990.1,0.1302]
[1764248270941,0.1996,2991.5,2990.1,0.1302]
[1764248271143,0.405504,2991.3,2990.1,0.1302]
[1764248271343,0.215,2991.2,2990.1,0.1302]
[1764248271670,3.34336342,2991.0,2990.1,0.1302]
[1764248271884,3.54240906,2991.5,2990.1,3.47452642]
[1764248271885,0.6667,2991.5,2990.1,3.47452642]
[1764248272096,0.6821,2991.4,2990.2,0.36429208]
[1764248272263,0.6821,2991.4,2990.1,0.1302]
[1764248272264,0.4671,2991.4,2990.1,0.1302]
[1764248272582,0.6821,2991.3,2990.2,3.8417579]
[1764248272756,0.4671,2991.3,2990.2,3.8417579]
[1764248272956,0.215,2991.2,2990.3,0.4975]
[1764248273159,0.4671,2991.3,2990.1,0.1302]
[1764248273362,0.71529327,2991.2,2990.2,0.51434168]
[1764248273558,3.5424166,2991.5,2990.2,0.4975]
[1764248273874,0.215,2991.4,2990.3,6.68829214]
[1764248274256,0.4671,2991.9,2990.4,1.22309411]
[1764248274460,0.4671,2991.9,2990.5,0.4975]
[1764248274658,0.215,2991.8,2990.5,0.4975]
[1764248274977,0.1996,2992.2,2990.6,8.3993]
[1764248275280,0.61586176,2992.1,2990.7,0.88968]
[1764248275496,0.61586176,2992.1,2990.6,6.337929]
[1764248275665,3.95800633,2992.1,2990.8,6.687174]
[1764248275852,0.215,2992.0,2990.8,6.687174]
[1764248276054,0.215,2992.0,2990.9,0.4975]
[1764248276247,0.1996,2992.2,2990.9,0.4975]
[1764248276452,0.1996,2992.2,2991.0,0.01681819]
[1764248276650,0.1996,2992.2,2990.9,1.22309411]
[1764248276878,0.215,2992.1,2991.0,1.62288551]
[1764248277067,0.1996,2992.2,2991.0,1.62288551]
[1764248277268,0.215,2992.0,2991.1,0.6783]
[1764248277654,0.4671,2991.9,2990.7,0.1808]
[1764248277947,6.68493882,2991.8,2990.7,0.90639411]
[1764248278149,0.71520388,2991.7,2990.7,1.38116316]
[1764248278382,1.18230388,2991.7,2990.7,4.72484115]
[1764248278893,0.4671,2991.6,2990.2,0.4975]
[1764248279098,0.215,2991.5,2990.2,0.4975]
[1764248279264,0.215,2991.5,2990.2,3.84167894]
[1764248279597,0.4671,2991.4,2990.2,3.84167894]
[1764248280083,6.68605622,2991.3,2990.2,3.84167894]
[1764248280257,0.33249487,2991.2,2990.2,4.23886683]
[1764248280459,0.4671,2991.2,2990.2,7.58312473]
[1764248280654,3.34282954,2991.5,2990.3,0.4975]
[1764248280881,0.215,2991.4,2990.3,1.22309411]
[1764248281055,0.4671,2991.6,2990.3,1.23993187]
[1764248281256,0.4671,2991.6,2990.4,0.4975]
[1764248281257,0.215,2991.5,2990.4,0.4975]
[1764248281492,0.04177807,2992.0,2990.4,0.4975]
[1764248281493,0.4671,2992.0,2990.6,0.72559411]
[1764248281796,0.215,2991.8,2991.4,0.1808]
[1764248282088,0.25678086,2991.8,2991.4,0.1808]
[1764248282285,3.34240132,2991.9,2991.4,0.1808]
[1764248282461,3.34226684,2992.0,2991.4,0.1808]
[1764248282655,0.04177947,2991.9,2991.4,0.1808]
[1764248282858,0.1988,2992.2,2991.4,3.52369506]
[1764248283088,0.04177667,2992.1,2991.4,0.86748212]
[1764248283263,0.04177667,2992.1,2991.4,0.1808]
[1764248284159,3.34224598,2992.0,2991.4,0.1808]
[1764248284360,6.68449196,2992.0,2991.0,3.84075677]
[1764248284560,0.04177947,2991.9,2991.1,0.1808]
[1764248284996,0.04177947,2991.9,2991.1,1.01136585]
[1764248285195,0.883104,2991.2,2989.8,0.4975]
[1764248285369,0.215,2991.1,2990.2,0.51434279]
[1764248285573,0.215,2991.1,2990.2,0.4975]
[1764248285897,0.215,2991.1,2990.3,0.39720683]
[1764248286259,3.38471129,2991.4,2990.4,0.4975]
[1764248286490,3.38471129,2991.4,2990.1,0.1302]
[1764248286491,0.30087487,2991.3,2990.1,0.1302]
[1764248286792,0.30087487,2991.2,2990.1,3.97205969]
[1764248286994,0.30087487,2991.1,2990.1,1.35429411]
[1764248287166,0.30087487,2991.0,2990.1,3.97304118]
[1764248287367,0.4671,2991.3,2990.2,0.41890412]
[1764248287579,0.1996,2990.9,2990.2,0.41890412]
[1764248287773,0.1996,2990.9,2990.1,0.001]
[1764248287963,0.76806517,2990.8,2990.1,0.001]
[1764248288164,6.6876212,2990.6,2990.1,0.001]
[1764248288362,0.4671,2990.5,2990.1,0.001]
[1764248288772,0.4776,2990.2,2990.1,0.001]
[1764248288986,0.6831,2990.5,2990.1,0.001]
[1764248289191,0.216,2990.5,2990.1,0.001]
[1764248289689,0.6831,2990.5,2990.1,0.001]
[1764248290083,0.4923,2990.4,2990.1,0.001]
[1764248290391,0.216,2990.5,2990.1,0.132]
[1764248290791,3.5599249,2990.5,2990.1,0.001]
[1764248290990,0.7083,2990.5,2990.1,0.001]
[1764248291291,0.30131913,2990.4,2990.1,0.001]
[1764248291494,3.55993503,2990.5,2990.1,0.001]
[1764248291693,0.30130459,2990.4,2990.1,0.1139]
[1764248291890,3.55992592,2990.5,2990.1,0.1139]
[1764248292095,0.30151424,2990.4,2990.1,0.1139]
[1764248292287,0.216,2990.5,2990.1,0.1139]
[1764248292461,0.30151239,2990.4,2990.2,0.0168506]
[1764248292792,0.215,2990.8,2990.1,3.94344164]
[1764248292990,0.30152915,2990.7,2990.3,0.4874]
[1764248293196,0.30152915,2990.6,2990.3,0.4874]
[1764248293397,3.3434013,2991.0,2990.1,3.45824164]
[1764248293594,4.20780832,2991.6,2990.5,0.72559411]
[1764248293595,0.22518505,2991.5,2990.5,0.72559411]
[1764248293894,0.30186536,2991.4,2990.9,0.4874]
[1764248294100,0.30186536,2991.3,2990.9,0.4874]
[1764248294267,0.30186536,2991.2,2990.9,0.4874]
[1764248294598,0.30186536,2991.1,2990.9,0.4874]
[1764248294801,3.38471815,2991.4,2990.7,3.34362811]
[1764248295094,0.30229211,2991.3,2990.7,4.03387172]
[1764248295296,3.38471267,2991.4,2990.7,4.03387172]
[1764248295297,0.30229211,2991.2,2990.7,4.03387172]
[1764248295472,0.30229211,2991.1,2990.8,0.01683159]
[1764248295675,0.30229211,2991.0,2990.8,0.01683159]
[1764248295984,4.08197449,2991.5,2991.0,0.4794]
[1764248296198,4.08197449,2991.5,2990.7,7.37757051]
[1764248296199,1.00109235,2991.4,2990.7,4.03387172]
[1764248296504,0.30269179,2991.3,2990.7,6.6873269]
[1764248296668,0.30269179,2991.2,2990.7,6.6873269]
[1764248296867,0.30269179,2991.1,2990.7,6.6873269]
[1764248297067,0.30269179,2991.0,2990.7,7.1711269]
[1764248297264,0.30269179,2990.9,2990.8,0.71711269]
[1764248297495,0.30269179,2990.9,2990.8,1.89531269]
[1764248298271,0.30269179,2990.9,2990.8,5.02389969]
[1764248298506,0.30269179,2990.9,2990.8,5.23889969]
[1764248298876,0.30269179,2990.9,2988.6,0.1808]
[1764248298877,0.30269179,2990.9,2989.7,0.72559411]
[1764248299078,0.30269179,2990.8,2990.3,1.42439411]
[1764248299390,0.30269179,2990.7,2990.4,0.4838]
[1764248299593,0.30269179,2990.6,2990.4,0.50064389]
[1764248299789,0.30269179,2990.5,2990.4,0.50064389]
[1764248300003,0.30269179,2990.5,2990.4,3.503496]
[1764248300175,0.30269179,2990.5,2990.4,5.40908238]
[1764248300377,0.30269179,2990.5,2990.4,8.75311662]
[1764248302198,0.30269179,2990.5,2990.4,8.53811662]
[1764248302502,0.30269179,2990.5,2990.4,8.75311662]
[1764248303388,0.30269179,2990.5,2990.4,12.52228202]
[1764248304207,0.30269179,2990.5,2990.4,19.68872513]
[1764248304506,0.7015787,2991.6,2990.8,0.72559411]
[1764248304681,1.00611017,2991.5,2990.9,0.215]
[1764248305012,3.342603,2991.7,2991.0,0.215]
[1764248305013,0.30453148,2991.4,2991.0,0.215]
[1764248305301,0.30453148,2991.3,2991.0,0.215]
[1764248305547,0.30453148,2991.2,2991.0,0.215]
[1764248305711,0.30453148,2991.1,2991.0,0.215]
[1764248306205,0.30453148,2991.1,2991.0,0.94440967]
[1764248306407,0.30453148,2991.1,2991.0,5.0133672]
[1764248306596,0.30373148,2991.1,2991.0,5.0133672]
[1764248307276,0.30373148,2991.1,2991.0,4.3189672]
[1764248307609,0.30373148,2991.1,2991.0,4.5339672]
[1764248308007,0.30373148,2991.1,2991.0,1.19060378]
[1764248308211,0.30373148,2991.1,2991.0,4.06895753]
[1764248308384,0.30373148,2991.1,2991.0,4.28395753]
[1764248308786,0.002,2992.1,2991.3,0.72559411]
[1764248309006,0.002,2992.1,2991.4,0.6944]
[1764248309346,0.002,2992.1,2990.9,3.7691654]
[1764248309347,0.4788,2991.4,2990.4,0.4848]
[1764248309635,0.74326844,2991.9,2990.5,14.91688736]
[1764248309927,0.04178086,2991.8,2990.6,1.75516874]
[1764248310127,0.52628086,2991.8,2990.7,3.7691654]
[1764248310327,0.4845,2991.8,2991.0,0.72559411]
[1764248310516,0.4845,2991.8,2991.2,6.68627974]
[1764248310716,3.38595771,2992.1,2991.3,0.01681763]
[1764248310951,3.87045771,2992.1,2991.3,0.20521763]
[1764248311250,0.4845,2992.0,2991.3,0.20521763]
[1764248311415,0.4845,2992.0,2991.3,0.91587833]
[1764248311623,0.04177947,2991.9,2991.4,0.215]
[1764248312150,0.4845,2991.8,2991.4,0.215]
[1764248312848,0.4845,2991.8,2991.4,3.55784147]
[1764248313030,3.82701771,2991.8,2991.4,0.215]
[1764248313207,0.4845,2991.8,2991.2,3.34312564]
[1764248313411,3.38595808,2992.1,2991.3,0.23181763]
[1764248313736,7.21255193,2992.1,2991.3,0.23181763]
[1764248313907,6.68627526,2992.1,2991.3,0.23181763]
[1764248314103,0.4845,2992.0,2991.3,0.23181763]
[1764248314308,0.4845,2992.0,2991.3,0.215]
[1764248314509,0.4845,2992.0,2991.4,0.215]
[1764248314709,3.82677603,2992.0,2991.4,3.57468796]
[1764248314910,0.04377667,2992.1,2991.4,7.73030743]
[1764248315138,0.002,2992.1,2991.4,8.19729483]
[1764248315633,0.4845,2992.0,2991.5,0.215]
[1764248316049,0.002,2992.1,2991.5,0.215]
[1764248316256,0.04377667,2992.1,2991.4,0.4838]
[1764248316408,0.002,2992.1,2991.5,0.23181093]
[1764248316607,0.002,2992.1,2991.4,0.4838]
[1764248316830,0.002,2992.1,2991.5,0.215]
[1764248317537,0.002,2992.1,2991.6,0.215]
[1764248317709,0.002,2992.1,2991.5,0.73846298]
[1764248317913,0.002,2992.1,2991.6,0.215]
[1764248318725,0.002,2992.1,2991.7,0.01680757]
[1764248318932,0.002,2992.1,2991.7,0.50060645]
[1764248319129,0.002,2992.1,2991.7,0.4838]
[1764248319705,0.002,2992.1,2991.8,0.215]
[1764248320112,0.002,2992.1,2992.0,0.4892]
[1764248320309,0.002,2992.1,2991.8,0.95340862]
[1764248321250,0.002,2992.1,2991.8,4.29587182]
[1764248321717,0.002,2992.1,2991.8,0.95340862]
[1764248321918,0.002,2992.1,2991.8,0.215]
[1764248322420,0.002,2992.1,2991.2,0.72559411]
[1764248322421,0.6057,2991.9,2991.7,0.215]
[1764248322620,0.9236,2991.8,2991.7,0.215]
[1764248322832,0.9236,2991.8,2991.7,0.10704]
[1764248323341,3.34416382,2992.1,2991.7,0.10704]
[1764248323646,0.4666,2991.8,2991.7,0.215]
[1764248323939,3.34416382,2992.1,2991.7,0.215]
[1764248324140,0.002,2992.1,2991.7,0.7042]
[1764248324359,0.002,2992.1,2991.8,0.01680589]
[1764248324513,0.002,2992.1,2991.7,0.7042]
[1764248324845,0.002,2992.1,2992.0,0.4892]
[1764248325046,0.002,2992.1,2992.0,3.83144598]
[1764248325243,0.002,2992.1,2992.0,4.5306474]
[1764248325422,0.002,2992.1,2992.0,0.50600142]
[1764248325629,0.002,2992.1,2992.0,0.7042]
[1764248326161,0.002,2992.1,2992.0,4.04644598]
[1764248326333,0.002,2992.1,2992.0,0.7042]
[1764248327053,0.002,2992.1,2992.0,4.04644598]
[1764248327361,0.002,2992.1,2992.0,0.7042]
[1764248327723,0.002,2992.1,2992.0,4.04644598]
[1764248327920,0.002,2992.1,2992.0,5.3162782]
[1764248328248,0.002,2992.1,2992.0,5.08447678]
[1764248328431,0.002,2992.1,2992.0,5.29947678]
[1764248329325,0.002,2992.1,2992.0,4.61707678]
[1764248329545,0.002,2992.1,2992.0,4.83207678]
[1764248329746,0.002,2992.1,2992.0,4.61707678]
[1764248330251,0.002,2992.1,2992.0,4.83207678]
[1764248330557,0.4678,2992.1,2991.0,0.1894]
[1764248330747,0.1411,2992.0,2991.2,0.4674]
[1764248331047,0.1411,2992.0,2991.4,0.72559411]
[1764248331251,0.1411,2992.0,2991.3,6.90105622]
[1764248331252,0.1847,2991.9,2991.1,0.4674]
[1764248331459,0.1847,2991.9,2991.2,0.23181651]
[1764248331627,0.6417,2991.9,2991.2,0.215]
[1764248332031,0.6417,2991.9,2991.2,0.23181708]
[1764248332243,0.6417,2991.9,2991.3,0.215]
[1764248332854,0.1847,2991.9,2991.0,7.76932882]
[1764248333155,0.1847,2992.9,2992.1,1.62003725]
[1764248333463,0.1847,2992.9,2992.0,0.4892]
[1764248333464,0.0417669,2992.8,2992.0,0.4892]
[1764248333627,0.0417669,2992.8,2992.1,0.01679305]
[1764248333824,0.04175853,2993.4,2992.2,0.215]
[1764248334150,0.04175993,2993.3,2992.2,1.19299411]
[1764248334353,0.80352705,2993.5,2992.1,0.1912]
[1764248334660,1.74128798,2993.4,2992.1,0.1912]
[1764248334847,0.34652984,2993.3,2992.1,0.1912]
[1764248335045,10.02271815,2993.2,2992.2,0.215]
[1764248335348,0.04176272,2993.1,2992.2,0.215]
[1764248335659,0.49876272,2993.1,2992.2,0.215]
[1764248335854,0.49876272,2993.1,2992.3,0.3916114]
[1764248336029,0.49876272,2993.1,2992.3,0.37482506]
[1764248336229,0.49876272,2993.1,2992.4,0.215]
[1764248336929,0.49876272,2993.1,2992.3,0.01678524]
[1764248337135,3.3411293,2993.0,2992.4,0.215]
[1764248337346,6.6822586,2993.0,2992.4,0.215]
[1764248337532,6.6822586,2993.0,2992.5,0.215]
[1764248337755,0.1847,2992.9,2992.5,0.215]
[1764248338150,3.3411293,2993.0,2992.5,0.215]
[1764248338350,6.6822586,2993.0,2992.5,0.215]
[1764248338525,0.68346551,2992.9,2992.6,0.215]
[1764248338927,0.4666,2992.7,2992.6,0.215]
[1764248340058,3.52603103,2992.9,2992.6,0.215]
[1764248340930,3.52603103,2992.9,2992.3,3.34185115]
[1764248341131,0.1847,2992.9,2992.4,3.57353015]
[1764248341326,0.457,2993.3,2992.4,4.02414325]
[1764248341533,0.04175853,2993.4,2992.7,3.98487863]
[1764248341726,0.49875853,2993.4,2992.5,3.8]
[1764248342027,0.49875853,2993.4,2992.4,7.364202]
[1764248342353,0.49875853,2993.4,2992.2,3.34193597]
[1764248342537,0.49875853,2993.4,2991.7,0.4674]
[1764248342538,0.3048427,2993.3,2991.7,0.4674]
[1764248342744,0.34660402,2993.2,2991.8,0.69919251]
[1764248343080,0.5198427,2993.1,2991.8,0.69919251]
[1764248343230,0.002,2992.7,2991.9,3.80975769]
[1764248343430,0.002,2992.7,2992.0,4.38903376]
[1764248343655,0.002,2992.7,2992.0,0.87155513]
[1764248343844,0.002,2992.7,2992.1,0.3897]
[1764248344252,0.002,2992.7,2992.1,0.8571]
[1764248344656,0.002,2992.7,2992.1,0.6421]
[1764248344862,0.002,2992.7,2992.2,0.215]
[1764248345437,0.002,2992.7,2992.0,0.40415513]
[1764248345438,0.459,2992.7,2992.0,0.215]
[1764248346251,0.459,2992.7,2992.1,0.1747]
[1764248346551,0.002,2992.7,2992.1,0.6421]
[1764248346952,0.002,2992.7,2992.2,0.01679249]
[1764248347157,0.002,2992.7,2992.6,0.4892]
[1764248347959,0.002,2992.7,2992.5,0.215]
[1764248348160,0.002,2992.7,2992.6,0.01678578]
[1764248348680,0.002,2992.7,2992.6,0.50598578]
[1764248350450,0.002,2992.7,2992.6,0.72098578]
[1764248352742,0.002,2992.7,2992.6,1.21358578]
[1764248353246,0.002,2992.7,2992.6,0.72098578]
[1764248354378,0.0012,2992.7,2992.6,2.25185838]
[1764248356045,0.0012,2992.7,2992.6,8.07925838]
[1764248356275,0.0012,2992.7,2992.6,7.8474726]
[1764248356455,0.0012,2992.7,2992.6,8.5550726]
[1764248357183,0.0012,2992.7,2992.6,2.2350726]
[1764248357374,0.0012,2992.7,2992.6,2.25185727]
[1764248357676,0.0012,2992.7,2992.6,1.75925727]
[1764248358651,0.0012,2992.7,2992.6,5.10083315]
[1764248358976,0.0012,2992.7,2992.6,2.25185727]
[1764248359481,0.0012,2992.7,2992.6,5.37843315]
[1764248359682,0.0012,2992.7,2992.6,5.59343315]
[1764248360854,0.0012,2992.7,2992.6,2.25185727]
[1764248361164,0.0012,2992.7,2992.6,5.59343315]
[1764248361684,0.0012,2992.7,2992.6,6.23193126]
[1764248361888,0.0012,2992.7,2992.6,9.48682248]
[1764248362075,0.0012,2992.7,2992.6,8.90587648]
[1764248362251,0.0012,2992.7,2992.6,10.03697459]
[1764248362782,3.80158875,2994.3,2992.7,25.59676211]
[1764248362954,3.3395405,2994.5,2993.5,3.98487863]
[1764248363153,0.30544104,2994.4,2993.6,0.215]
[1764248363367,3.33962045,2994.4,2993.6,0.7076]
[1764248363785,6.6792409,2994.4,2993.7,0.4926]
[1764248363982,7.1411409,2994.4,2993.6,0.215]
[1764248364281,0.4619,2994.4,2993.7,4.30217067]
[1764248364453,0.3997,2995.0,2993.8,0.214]
[1764248364454,0.4619,2994.5,2993.8,0.214]
[1764248364658,0.4619,2994.5,2993.9,0.214]
[1764248366275,3.80139121,2994.5,2993.9,3.34012492]
[1764248366493,3.80139121,2994.5,2994.0,0.214]
[1764248366987,0.4619,2994.4,2994.0,0.214]
[1764248367194,0.4619,2994.4,2994.1,0.214]
[1764248367564,0.4619,2994.4,2994.2,0.214]
[1764248367767,3.33934838,2994.6,2994.2,0.214]
[1764248367971,0.4981,2994.3,2994.2,0.214]
[1764248368480,0.002,2995.4,2994.3,8.12556283]
[1764248368684,0.002,2995.4,2994.1,3.5372787]
[1764248368685,0.4619,2995.0,2994.4,1.32928415]
[1764248368985,0.4619,2995.0,2994.5,0.214]
[1764248369187,0.1962,2994.9,2994.5,0.214]
[1764248369367,0.1962,2994.9,2994.1,3.53725306]
[1764248369568,0.4981,2994.2,2993.9,0.1974]
[1764248369887,0.4981,2994.2,2993.7,0.46924786]
[1764248370062,0.4981,2994.2,2993.8,0.215]
[1764248370460,0.4981,2994.2,2993.8,3.5552357]
[1764248370679,0.4981,2994.2,2993.8,3.3402357]
[1764248370875,0.4981,2994.2,2993.9,0.215]
[1764248371076,0.4981,2994.2,2994.0,0.214]
[1764248371473,3.83789126,2994.2,2994.0,0.214]
[1764248372166,3.83789126,2994.2,2994.1,0.214]
[1764248372791,8.40353131,2994.2,2993.8,0.214]
[1764248373119,8.40353131,2994.2,2993.6,0.214]
[1764248373120,0.1021,2993.8,2993.6,0.214]
[1764248373394,0.1021,2993.8,2993.2,0.72559411]
[1764248373395,0.4942,2993.3,2993.2,0.214]
[1764248373579,0.9561,2993.3,2992.4,3.34179922]
[1764248373765,0.9561,2993.3,2992.5,0.38343992]
[1764248373959,0.4619,2993.2,2992.5,0.38343992]
[1764248374165,0.4619,2993.2,2992.3,0.7066]
[1764248374366,6.68203534,2993.1,2992.3,0.7066]
[1764248374797,0.4619,2993.0,2992.4,0.214]
[1764248375000,0.4619,2993.0,2992.5,0.214]
[1764248375285,0.1962,2992.9,2992.5,0.214]
[1764248375667,0.6581,2992.9,2992.5,0.214]
[1764248375895,0.1962,2992.9,2992.5,0.214]
[1764248376285,0.1962,2992.9,2992.6,0.214]
[1764248376469,3.53747563,2992.9,2992.6,0.214]
[1764248376789,3.53747563,2992.9,2992.2,3.34201527]
[1764248376790,0.4981,2992.7,2992.2,3.34201527]
[1764248376995,3.99937563,2992.9,2992.3,0.56567153]
[1764248377180,3.34109627,2993.1,2992.4,0.0167869]
[1764248377588,3.80283512,2993.2,2992.4,0.5093869]
[1764248377765,3.34093512,2993.2,2992.4,0.5093869]
[1764248377965,3.34013512,2993.2,2992.4,0.5093869]
[1764248378372,3.34084098,2993.3,2992.5,3.34168755]
[1764248378592,3.34084098,2993.3,2992.6,0.38510745]
[1764248378792,0.1061,2993.4,2992.7,0.214]
[1764248378962,0.1962,2994.0,2993.3,0.6465]
[1764248379165,0.1962,2994.0,2993.4,0.6898]
[1764248379166,3.53621502,2994.0,2993.4,0.6898]
[1764248379882,3.99811502,2994.0,2993.5,0.214]
[1764248380563,3.53621502,2994.0,2993.5,0.214]
[1764248380767,0.4859,2994.3,2993.5,4.46628268]
[1764248380967,3.82563347,2994.3,2993.6,0.01675119]
[1764248381188,0.5276418,2994.6,2993.6,0.50695119]
[1764248381383,7.20634292,2994.6,2993.6,0.50695119]
[1764248381586,7.16460112,2994.6,2993.6,0.4902]
[1764248381796,0.52764319,2994.5,2993.7,0.214]
[1764248382177,0.4717,2993.8,2993.7,0.214]
[1764248382578,0.4717,2993.8,2993.3,3.51149271]
[1764248382782,0.4717,2993.8,2993.4,0.214]
[1764248383572,7.63812958,2993.8,2993.5,0.214]
[1764248383773,4.29783648,2993.8,2993.5,0.214]
[1764248383990,0.1901,2993.6,2993.5,6.32]
[1764248384187,0.1901,2993.6,2993.5,6.534]
[1764248384905,3.82613648,2993.8,2993.5,6.534]
[1764248385203,3.82613648,2993.8,2993.5,0.214]
[1764248385499,0.4717,2993.6,2993.3,3.8]
[1764248385706,0.4717,2993.6,2993.4,0.214]
[1764248386294,3.34023648,2993.8,2993.4,0.214]
[1764248386602,3.82613648,2993.8,2993.4,0.214]
[1764248387908,3.82613648,2993.8,2993.5,0.214]
[1764248388399,0.4717,2993.6,2993.5,0.214]
[1764248389201,0.4717,2993.6,2993.3,4.82907]
[1764248389510,0.4717,2993.6,2993.4,0.214]
[1764248389709,0.1901,2993.5,2993.3,1.02907]
[1764248390014,0.1901,2993.5,2993.4,0.214]
[1764248390508,0.1901,2993.5,2993.2,3.8]
[1764248390707,0.1929,2993.3,2992.6,0.87530745]
[1764248390907,0.4661,2993.2,2992.8,0.72559411]
[1764248391210,0.4661,2993.2,2992.9,0.80810057]
[1764248391707,0.4717,2993.0,2992.9,0.80810057]
[1764248391891,0.4717,2993.0,2992.9,0.214]
[1764248392090,0.4717,2993.0,2992.7,3.8]
[1764248392091,0.9576,2993.0,2992.7,3.8]
[1764248392408,0.1901,2992.8,2992.7,3.8]
[1764248392579,0.676,2992.8,2992.7,3.8]
[1764248393210,0.1901,2992.8,2992.7,3.8]
[1764248393806,0.6999,2993.5,2992.7,5.63346638]
[1764248394011,6.68136566,2993.4,2992.8,0.0167735]
[1764248394203,6.68136566,2993.4,2992.7,4.014]
[1764248394204,0.4717,2992.8,2992.7,4.014]
[1764248395011,0.4717,2992.8,2992.7,0.214]
[1764248395912,3.3411293,2993.0,2992.7,0.214]
[1764248396823,3.3411293,2993.0,2992.6,0.214]
[1764248396994,3.82695748,2993.1,2992.6,0.214]
[1764248397182,3.34105748,2993.1,2992.7,0.01678077]
[1764248397383,0.4859,2993.0,2992.7,0.214]
[1764248397613,0.4717,2992.8,2992.7,0.214]
[1764248398112,0.4717,2992.8,2992.4,10.12]
[1764248398416,0.4859,2993.0,2992.5,0.214]
[1764248398582,0.4859,2993.0,2992.6,0.001]
[1764248398921,0.4859,2993.0,2992.6,0.01778244]
[1764248399217,0.002,2993.2,2992.7,0.214]
[1764248399416,0.002,2993.2,2992.8,0.01677686]
[1764248399713,3.82889766,2993.2,2992.6,0.001]
[1764248399917,3.82889766,2993.2,2992.7,0.38918844]
[1764248400417,0.4859,2993.1,2992.8,0.214]
[1764248400915,0.6627,2992.9,2992.7,0.17518844]